[Event "Late-Titled-Tuesday-Blitz-September-05-2023"]
[Site "Chess.com"]
[Date "2023.09.05"]
[Round "5"]
[White "whiteglovethief"]
[Black "a-z30"]
[Result "1-0"]
[WhiteElo "2494"]
[BlackElo "2303"]
[TimeControl "180+1"]
[EndTime "14:54:46 PDT"]
[Termination "whiteglovethief won by resignation"]

1. d4 {[%clk 0:03:00.9]} 1... d6 {[%clk 0:03:00.9]} 2. Nf3 {[%clk 0:02:59.2]}
2... Nf6 {[%clk 0:03:01.8]} 3. g3 {[%clk 0:02:59.3]} 3... g6 {[%clk 0:03:02.1]}
4. Bg2 {[%clk 0:02:59.7]} 4... Bg7 {[%clk 0:03:02.9]} 5. c4 {[%clk 0:02:59.1]}
5... O-O {[%clk 0:03:03.3]} 6. Nc3 {[%clk 0:02:59.2]} 6... c6 {[%clk 0:03:04.1]}
7. O-O {[%clk 0:02:58.8]} 7... Bf5 {[%clk 0:03:04]} 8. Re1 {[%clk 0:02:52.1]}
8... Ne4 {[%clk 0:03:03.4]} 9. Nh4 {[%clk 0:02:50.6]} 9... Nxc3 {[%clk
0:03:02.6]} 10. bxc3 {[%clk 0:02:51.5]} 10... Bd7 {[%clk 0:03:00.3]} 11. Rb1
{[%clk 0:02:51.3]} 11... Qc7 {[%clk 0:02:59.6]} 12. e4 {[%clk 0:02:49.4]} 12...
c5 {[%clk 0:02:41.2]} 13. e5 {[%clk 0:02:44.4]} 13... Nc6 {[%clk 0:02:16.3]} 14.
exd6 {[%clk 0:02:29.1]} 14... exd6 {[%clk 0:02:16.3]} 15. dxc5 {[%clk
0:02:25.3]} 15... dxc5 {[%clk 0:02:17.2]} 16. Bf4 {[%clk 0:02:24.3]} 16... Qc8
{[%clk 0:02:17.3]} 17. Qd6 {[%clk 0:02:13.7]} 17... Bxc3 {[%clk 0:01:39.7]} 18.
Red1 {[%clk 0:02:13.6]} 18... Bd4 {[%clk 0:01:26.6]} 19. Bd5 {[%clk 0:02:06.8]}
19... Bg4 {[%clk 0:01:12.2]} 20. Rxd4 {[%clk 0:02:00.3]} 20... Nxd4 {[%clk
0:00:29.2]} 21. Rxb7 {[%clk 0:01:54.8]} 21... Qd8 {[%clk 0:00:13.1]} 22. Rxf7
{[%clk 0:01:54.3]} 22... Rxf7 {[%clk 0:00:10.9]} 23. Bxa8 {[%clk 0:01:52.5]}
23... Qxd6 {[%clk 0:00:09.1]} 24. Bxd6 {[%clk 0:01:53.4]} 24... Rd7 {[%clk
0:00:06.5]} 25. Bd5+ {[%clk 0:01:51.8]} 25... Kg7 {[%clk 0:00:06.7]} 26. Bxc5
{[%clk 0:01:51.3]} 26... Ne2+ {[%clk 0:00:05.4]} 27. Kf1 {[%clk 0:01:51.4]}
27... Nc1 {[%clk 0:00:04.7]} 28. f3 {[%clk 0:01:50.6]} 28... Bf5 {[%clk
0:00:03.9]} 29. Bd4+ {[%clk 0:01:50.1]} 29... Kh6 {[%clk 0:00:03.5]} 30. Be3+
{[%clk 0:01:49.4]} 30... g5 {[%clk 0:00:03.1]} 31. Nxf5+ {[%clk 0:01:48.8]} 1-0

[Event "Late-Titled-Tuesday-Blitz-September-05-2023"]
[Site "Chess.com"]
[Date "2023.09.05"]
[Round "5"]
[White "Javylavilla"]
[Black "The_Straightforward_Rook"]
[Result "0-1"]
[WhiteElo "2297"]
[BlackElo "2496"]
[TimeControl "180+1"]
[EndTime "14:55:01 PDT"]
[Termination "The_Straightforward_Rook won by checkmate"]

1. e4 {[%clk 0:03:00.9]} 1... e5 {[%clk 0:02:59.8]} 2. Nf3 {[%clk 0:03:00.4]}
2... Nc6 {[%clk 0:03:00.2]} 3. Bb5 {[%clk 0:03:00.9]} 3... Nf6 {[%clk
0:02:59.7]} 4. d3 {[%clk 0:03:00.3]} 4... Bc5 {[%clk 0:02:59.2]} 5. Nc3 {[%clk
0:02:58]} 5... O-O {[%clk 0:02:53.3]} 6. Bg5 {[%clk 0:02:52.7]} 6... h6 {[%clk
0:02:48.4]} 7. Bh4 {[%clk 0:02:48.3]} 7... Nd4 {[%clk 0:02:28.7]} 8. Nxe5 {[%clk
0:02:40.3]} 8... Nxb5 {[%clk 0:02:20.4]} 9. Nxb5 {[%clk 0:02:39.7]} 9... g5
{[%clk 0:02:11]} 10. Bg3 {[%clk 0:02:38.5]} 10... c6 {[%clk 0:02:04.5]} 11. Nc3
{[%clk 0:02:36.1]} 11... d5 {[%clk 0:02:04.2]} 12. exd5 {[%clk 0:02:36.1]} 12...
cxd5 {[%clk 0:02:05.1]} 13. O-O {[%clk 0:02:35.6]} 13... d4 {[%clk 0:02:05.4]}
14. Ne4 {[%clk 0:02:34.5]} 14... Nxe4 {[%clk 0:02:04.9]} 15. dxe4 {[%clk
0:02:35.4]} 15... Qe7 {[%clk 0:02:00]} 16. Ng4 {[%clk 0:02:25.9]} 16... Kg7
{[%clk 0:01:50.1]} 17. Be5+ {[%clk 0:02:22]} 17... f6 {[%clk 0:01:49.4]} 18.
Bxf6+ {[%clk 0:01:59.3]} 18... Rxf6 {[%clk 0:01:48.8]} 19. Nxf6 {[%clk
0:02:00.2]} 19... Qxf6 {[%clk 0:01:47.9]} 20. Qd3 {[%clk 0:02:00]} 20... Be6
{[%clk 0:01:39]} 21. Rae1 {[%clk 0:01:47.4]} 21... Qe5 {[%clk 0:01:34.1]} 22. g3
{[%clk 0:01:46.9]} 22... Bh3 {[%clk 0:01:31.2]} 23. f4 {[%clk 0:01:46.8]} 23...
Bxf1 {[%clk 0:01:17.8]} 24. Rxf1 {[%clk 0:01:37.6]} 24... gxf4 {[%clk
0:01:11.7]} 25. gxf4 {[%clk 0:01:38.5]} 25... Qf6 {[%clk 0:01:07.7]} 26. Kh1
{[%clk 0:01:33.7]} 26... Kh8 {[%clk 0:01:07]} 27. e5 {[%clk 0:01:31.9]} 27...
Qc6+ {[%clk 0:01:05.9]} 28. Kg1 {[%clk 0:01:26]} 28... Rg8+ {[%clk 0:01:05.3]}
29. Kf2 {[%clk 0:01:26.3]} 29... Rg2+ {[%clk 0:00:51.8]} 30. Ke1 {[%clk
0:01:26.1]} 30... Bb4+ {[%clk 0:00:52.3]} 31. c3 {[%clk 0:01:23.9]} 31... dxc3
{[%clk 0:00:47.5]} 32. Qd8+ {[%clk 0:01:23.6]} 32... Rg8 {[%clk 0:00:48]} 33.
Qh4 {[%clk 0:01:18]} 33... cxb2+ {[%clk 0:00:43.3]} 34. Ke2 {[%clk 0:01:17.8]}
34... Qe4+ {[%clk 0:00:36.5]} 35. Kd1 {[%clk 0:01:12.4]} 35... Qd3# {[%clk
0:00:34]} 0-1

[Event "Late-Titled-Tuesday-Blitz-September-05-2023"]
[Site "Chess.com"]
[Date "2023.09.05"]
[Round "5"]
[White "platy3"]
[Black "AndreiITrifan"]
[Result "1-0"]
[WhiteElo "2909"]
[BlackElo "2626"]
[TimeControl "180+1"]
[EndTime "14:55:09 PDT"]
[Termination "platy3 won by resignation"]

1. e4 {[%clk 0:03:00.5]} 1... e5 {[%clk 0:02:57.1]} 2. Nf3 {[%clk 0:03:00.1]}
2... Nc6 {[%clk 0:02:57]} 3. Bc4 {[%clk 0:02:58.5]} 3... Bc5 {[%clk 0:02:55.5]}
4. c3 {[%clk 0:02:57.2]} 4... Nf6 {[%clk 0:02:52.1]} 5. d4 {[%clk 0:02:57.8]}
5... exd4 {[%clk 0:02:31.8]} 6. b4 {[%clk 0:02:58.7]} 6... Bb6 {[%clk
0:02:19.8]} 7. e5 {[%clk 0:02:52.9]} 7... Ne4 {[%clk 0:01:50]} 8. b5 {[%clk
0:02:51.8]} 8... d5 {[%clk 0:01:34.5]} 9. exd6 {[%clk 0:02:51.1]} 9... Nxd6
{[%clk 0:01:34.4]} 10. bxc6 {[%clk 0:02:51.8]} 10... Nxc4 {[%clk 0:01:29]} 11.
cxb7 {[%clk 0:02:40.4]} 11... Qe7+ {[%clk 0:01:18.3]} 12. Kf1 {[%clk 0:02:40]}
12... Bxb7 {[%clk 0:01:17.7]} 13. Qa4+ {[%clk 0:02:40.5]} 13... Kd8 {[%clk
0:00:51.4]} 14. Qxc4 {[%clk 0:02:38.9]} 14... a5 {[%clk 0:00:50.7]} 15. Kg1
{[%clk 0:02:19]} 15... dxc3 {[%clk 0:00:39.8]} 16. Ba3 {[%clk 0:01:46.7]} 16...
Qe6 {[%clk 0:00:19.2]} 17. Qxe6 {[%clk 0:01:37.1]} 17... fxe6 {[%clk 0:00:20.1]}
18. Nxc3 {[%clk 0:01:37.6]} 18... Ke8 {[%clk 0:00:19.9]} 19. Na4 {[%clk
0:01:32.8]} 19... Ba7 {[%clk 0:00:16.5]} 20. Bc5 {[%clk 0:01:30.1]} 20... Bc6
{[%clk 0:00:14.7]} 21. Bxa7 {[%clk 0:01:29.1]} 21... Bxa4 {[%clk 0:00:14.7]} 22.
Bc5 {[%clk 0:01:26.2]} 22... Kf7 {[%clk 0:00:14]} 23. h4 {[%clk 0:01:22.2]}
23... Rad8 {[%clk 0:00:13.4]} 24. Kh2 {[%clk 0:01:22.3]} 24... Rd5 {[%clk
0:00:12.6]} 25. Rac1 {[%clk 0:01:21.5]} 25... Rb8 {[%clk 0:00:11.2]} 26. Be3
{[%clk 0:01:21.1]} 26... c6 {[%clk 0:00:10.6]} 27. Rc4 {[%clk 0:01:18.8]} 27...
h6 {[%clk 0:00:10.4]} 28. Rxa4 {[%clk 0:01:18.6]} 1-0

[Event "Late-Titled-Tuesday-Blitz-September-05-2023"]
[Site "Chess.com"]
[Date "2023.09.05"]
[Round "5"]
[White "MustafayevFarid2004"]
[Black "HansOnTwitch"]
[Result "0-1"]
[WhiteElo "2662"]
[BlackElo "3008"]
[TimeControl "180+1"]
[EndTime "14:55:14 PDT"]
[Termination "HansOnTwitch won by resignation"]

1. c4 {[%clk 0:02:59.6]} 1... g6 {[%clk 0:02:58.6]} 2. Nf3 {[%clk 0:02:59]} 2...
Bg7 {[%clk 0:02:58.7]} 3. g3 {[%clk 0:02:59.7]} 3... e5 {[%clk 0:02:58.8]} 4. d3
{[%clk 0:02:59.6]} 4... Nc6 {[%clk 0:02:58.5]} 5. Bg2 {[%clk 0:02:59.5]} 5... d6
{[%clk 0:02:58]} 6. O-O {[%clk 0:02:59.1]} 6... f5 {[%clk 0:02:58.6]} 7. Nc3
{[%clk 0:02:59.6]} 7... Nf6 {[%clk 0:02:59.2]} 8. Rb1 {[%clk 0:02:59.8]} 8... a5
{[%clk 0:02:57.4]} 9. Ne1 {[%clk 0:02:59]} 9... O-O {[%clk 0:02:56.5]} 10. a3
{[%clk 0:02:57.5]} 10... Nd4 {[%clk 0:02:48.6]} 11. e3 {[%clk 0:02:53.6]} 11...
Ne6 {[%clk 0:02:48]} 12. Nd5 {[%clk 0:02:40.5]} 12... c6 {[%clk 0:02:37.9]} 13.
Nxf6+ {[%clk 0:02:39.3]} 13... Qxf6 {[%clk 0:02:38.4]} 14. b4 {[%clk 0:02:33.8]}
14... axb4 {[%clk 0:02:37.2]} 15. axb4 {[%clk 0:02:33.7]} 15... f4 {[%clk
0:02:30.2]} 16. exf4 {[%clk 0:02:12.3]} 16... exf4 {[%clk 0:02:29.7]} 17. Bb2
{[%clk 0:02:12.1]} 17... Qf7 {[%clk 0:02:17.7]} 18. Nf3 {[%clk 0:02:05.4]} 18...
Bxb2 {[%clk 0:02:14.4]} 19. Rxb2 {[%clk 0:02:05.4]} 19... Ra3 {[%clk 0:02:13.4]}
20. g4 {[%clk 0:01:37.7]} 20... Qf6 {[%clk 0:02:07.7]} 21. Rd2 {[%clk
0:01:30.1]} 21... Bd7 {[%clk 0:01:49.7]} 22. h3 {[%clk 0:01:18.3]} 22... Rfa8
{[%clk 0:01:47.9]} 23. Qe2 {[%clk 0:01:17.1]} 23... Re8 {[%clk 0:01:46]} 24. Qd1
{[%clk 0:01:03.1]} 24... h5 {[%clk 0:01:39.7]} 25. Re1 {[%clk 0:00:52]} 25...
hxg4 {[%clk 0:01:38.5]} 26. hxg4 {[%clk 0:00:52.9]} 26... Rea8 {[%clk
0:01:32.6]} 27. Qe2 {[%clk 0:00:51.1]} 27... Ra1 {[%clk 0:01:32.2]} 28. Rdd1
{[%clk 0:00:48.5]} 28... Rxd1 {[%clk 0:01:24.2]} 29. Rxd1 {[%clk 0:00:49.4]}
29... Re8 {[%clk 0:01:22.8]} 30. Qa2 {[%clk 0:00:42.1]} 30... Ng5 {[%clk
0:01:10.8]} 31. Nh2 {[%clk 0:00:37.8]} 31... f3 {[%clk 0:01:09.6]} 32. Bf1
{[%clk 0:00:38.4]} 32... Qf4 {[%clk 0:01:05.7]} 33. Qa8 {[%clk 0:00:34.3]} 0-1

[Event "Late-Titled-Tuesday-Blitz-September-05-2023"]
[Site "Chess.com"]
[Date "2023.09.05"]
[Round "5"]
[White "leoduarte"]
[Black "reevecanada"]
[Result "0-1"]
[WhiteElo "2387"]
[BlackElo "2545"]
[TimeControl "180+1"]
[EndTime "14:55:28 PDT"]
[Termination "reevecanada won on time"]

1. d4 {[%clk 0:02:55.5]} 1... Nf6 {[%clk 0:02:50.5]} 2. c4 {[%clk 0:02:54]} 2...
g6 {[%clk 0:02:49.8]} 3. Nc3 {[%clk 0:02:52.7]} 3... d5 {[%clk 0:02:47.5]} 4.
Nf3 {[%clk 0:02:43.1]} 4... Bg7 {[%clk 0:02:46.8]} 5. Bg5 {[%clk 0:02:42.6]}
5... Ne4 {[%clk 0:02:38.4]} 6. Bf4 {[%clk 0:02:42.8]} 6... Nxc3 {[%clk
0:02:19.5]} 7. bxc3 {[%clk 0:02:43.7]} 7... dxc4 {[%clk 0:02:19.8]} 8. e3 {[%clk
0:02:43.7]} 8... b5 {[%clk 0:02:18.5]} 9. a4 {[%clk 0:02:24.2]} 9... c6 {[%clk
0:02:17.1]} 10. Qb1 {[%clk 0:02:09.6]} 10... a6 {[%clk 0:02:14.5]} 11. axb5
{[%clk 0:02:06.1]} 11... cxb5 {[%clk 0:02:11.1]} 12. Qe4 {[%clk 0:02:06.3]}
12... Ra7 {[%clk 0:02:10.9]} 13. Bxb8 {[%clk 0:02:05.9]} 13... Bb7 {[%clk
0:02:08.3]} 14. Qf4 {[%clk 0:02:00.5]} 14... Ra8 {[%clk 0:02:08.4]} 15. Bc7
{[%clk 0:02:00.4]} 15... Qd7 {[%clk 0:02:07.7]} 16. Be2 {[%clk 0:01:59.2]} 16...
O-O {[%clk 0:02:06.6]} 17. O-O {[%clk 0:01:59.1]} 17... f6 {[%clk 0:02:05.7]}
18. Qg3 {[%clk 0:01:55.2]} 18... e5 {[%clk 0:02:03.7]} 19. Bb6 {[%clk
0:01:52.9]} 19... e4 {[%clk 0:02:01.3]} 20. Nd2 {[%clk 0:01:52]} 20... f5 {[%clk
0:02:01.6]} 21. Qc7 {[%clk 0:01:49.7]} 21... Qd5 {[%clk 0:02:00.9]} 22. Qc5
{[%clk 0:01:36]} 22... Qd7 {[%clk 0:01:59.9]} 23. Nxc4 {[%clk 0:01:11.1]} 23...
bxc4 {[%clk 0:01:55.3]} 24. Bxc4+ {[%clk 0:01:12]} 24... Kh8 {[%clk 0:01:55.1]}
25. Qc7 {[%clk 0:01:06.6]} 25... Qxc7 {[%clk 0:01:53.9]} 26. Bxc7 {[%clk
0:01:07.2]} 26... Rfc8 {[%clk 0:01:53.9]} 27. Rfb1 {[%clk 0:00:21.6]} 27... Rxc7
{[%clk 0:01:53.1]} 28. Be2 {[%clk 0:00:22.3]} 28... Bd5 {[%clk 0:01:52.1]} 29.
c4 {[%clk 0:00:20.7]} 29... Bxc4 {[%clk 0:01:51]} 30. Rc1 {[%clk 0:00:21.4]}
30... Rac8 {[%clk 0:01:50]} 31. Bd1 {[%clk 0:00:18.7]} 31... Bd3 {[%clk
0:01:49.4]} 32. Rxc7 {[%clk 0:00:16.3]} 32... Rxc7 {[%clk 0:01:50.3]} 33. h4
{[%clk 0:00:16.4]} 33... h6 {[%clk 0:01:49.9]} 34. h5 {[%clk 0:00:16.3]} 34...
g5 {[%clk 0:01:49.6]} 35. g4 {[%clk 0:00:15.4]} 35... f4 {[%clk 0:01:49.6]} 36.
Bb3 {[%clk 0:00:14]} 36... f3 {[%clk 0:01:49.5]} 37. Be6 {[%clk 0:00:12.7]}
37... Bf8 {[%clk 0:01:49.3]} 38. d5 {[%clk 0:00:10.5]} 38... Bd6 {[%clk
0:01:49.1]} 39. Rd1 {[%clk 0:00:08]} 39... a5 {[%clk 0:01:47.6]} 40. Bf5 {[%clk
0:00:06.5]} 40... a4 {[%clk 0:01:48]} 41. Ra1 {[%clk 0:00:06.4]} 41... a3 {[%clk
0:01:48.3]} 42. Kh1 {[%clk 0:00:04.2]} 42... a2 {[%clk 0:01:48.7]} 43. Bxe4
{[%clk 0:00:04.2]} 43... Bxe4 {[%clk 0:01:48]} 44. Rd1 {[%clk 0:00:03.5]} 44...
Bxd5 {[%clk 0:01:47]} 45. e4 {[%clk 0:00:02.6]} 45... Bxe4 {[%clk 0:01:47.2]}
46. Re1 {[%clk 0:00:03]} 46... Be5 {[%clk 0:01:46.8]} 47. Kg1 {[%clk 0:00:03]}
47... Rb7 {[%clk 0:01:45.4]} 0-1

[Event "Late-Titled-Tuesday-Blitz-September-05-2023"]
[Site "Chess.com"]
[Date "2023.09.05"]
[Round "5"]
[White "DeArron_Fox"]
[Black "Sacbutt"]
[Result "1-0"]
[WhiteElo "2472"]
[BlackElo "2269"]
[TimeControl "180+1"]
[EndTime "14:55:40 PDT"]
[Termination "DeArron_Fox won by resignation"]

1. d4 {[%clk 0:03:00.9]} 1... Nf6 {[%clk 0:02:59.4]} 2. c4 {[%clk 0:03:01.2]}
2... e6 {[%clk 0:02:59.7]} 3. Nf3 {[%clk 0:03:01.4]} 3... b6 {[%clk 0:03:00.1]}
4. g3 {[%clk 0:03:01.2]} 4... Bb7 {[%clk 0:03:00.3]} 5. Bg2 {[%clk 0:03:01.7]}
5... Be7 {[%clk 0:03:00.8]} 6. O-O {[%clk 0:03:02.2]} 6... O-O {[%clk
0:03:01.3]} 7. Re1 {[%clk 0:03:02.7]} 7... Ne4 {[%clk 0:03:01.1]} 8. Qc2 {[%clk
0:02:59.6]} 8... f5 {[%clk 0:03:00.5]} 9. Nc3 {[%clk 0:02:41.8]} 9... Nxc3
{[%clk 0:02:59.9]} 10. Qxc3 {[%clk 0:02:42.7]} 10... Be4 {[%clk 0:02:55.9]} 11.
b3 {[%clk 0:02:31.5]} 11... d6 {[%clk 0:02:50.5]} 12. Bb2 {[%clk 0:02:29.1]}
12... Bf6 {[%clk 0:02:49]} 13. Qd2 {[%clk 0:02:16.4]} 13... Nd7 {[%clk 0:02:46]}
14. h4 {[%clk 0:02:08.1]} 14... h6 {[%clk 0:02:42]} 15. Nh2 {[%clk 0:02:02.1]}
15... Bxg2 {[%clk 0:02:40.6]} 16. Kxg2 {[%clk 0:02:03]} 16... Qe7 {[%clk
0:02:37.4]} 17. e4 {[%clk 0:01:53.5]} 17... fxe4 {[%clk 0:02:29.1]} 18. Rxe4
{[%clk 0:01:51.5]} 18... Qf7 {[%clk 0:02:18.3]} 19. Rae1 {[%clk 0:01:46.9]}
19... Rae8 {[%clk 0:02:17.2]} 20. Qe2 {[%clk 0:01:33.3]} 20... e5 {[%clk
0:02:00.1]} 21. Ng4 {[%clk 0:01:28.8]} 21... c5 {[%clk 0:01:43]} 22. dxe5 {[%clk
0:01:15.8]} 22... Bxe5 {[%clk 0:01:38.2]} 23. Bxe5 {[%clk 0:00:58]} 23... Nxe5
{[%clk 0:01:36.4]} 24. f4 {[%clk 0:00:42.4]} 24... Nxg4 {[%clk 0:01:08.1]} 25.
Rxe8 {[%clk 0:00:34.9]} 25... Nf6 {[%clk 0:01:03.7]} 26. Rxf8+ {[%clk
0:00:32.8]} 26... Kxf8 {[%clk 0:01:00.7]} 27. Qe6 {[%clk 0:00:25]} 27... Qxe6
{[%clk 0:00:57.2]} 28. Rxe6 {[%clk 0:00:24.2]} 28... d5 {[%clk 0:00:57.9]} 29.
cxd5 {[%clk 0:00:19.4]} 29... Nxd5 {[%clk 0:00:58.8]} 30. Rd6 {[%clk 0:00:19.6]}
30... Nb4 {[%clk 0:00:57.4]} 31. a3 {[%clk 0:00:13.1]} 31... Nc2 {[%clk
0:00:55.9]} 32. Rd7 {[%clk 0:00:13.4]} 32... Nxa3 {[%clk 0:00:52.9]} 33. Rxa7
{[%clk 0:00:12.9]} 33... c4 {[%clk 0:00:52.9]} 34. Rxa3 {[%clk 0:00:12]} 1-0

[Event "Late-Titled-Tuesday-Blitz-September-05-2023"]
[Site "Chess.com"]
[Date "2023.09.05"]
[Round "5"]
[White "CrushingKings"]
[Black "SaqoChess_Twitch"]
[Result "0-1"]
[WhiteElo "2535"]
[BlackElo "2738"]
[TimeControl "180+1"]
[EndTime "14:55:47 PDT"]
[Termination "SaqoChess_Twitch won on time"]

1. Nf3 {[%clk 0:03:00.9]} 1... d5 {[%clk 0:03:00]} 2. g3 {[%clk 0:03:01.5]} 2...
e6 {[%clk 0:03:00.6]} 3. Bg2 {[%clk 0:03:02]} 3... Nf6 {[%clk 0:03:01.4]} 4. O-O
{[%clk 0:03:02.7]} 4... Be7 {[%clk 0:03:02.2]} 5. c4 {[%clk 0:03:03.4]} 5... O-O
{[%clk 0:03:03]} 6. b3 {[%clk 0:03:04.1]} 6... c5 {[%clk 0:03:03.1]} 7. cxd5
{[%clk 0:03:03.8]} 7... Nxd5 {[%clk 0:03:02.2]} 8. d4 {[%clk 0:03:04.1]} 8...
Nc6 {[%clk 0:02:58.8]} 9. Bb2 {[%clk 0:03:03.9]} 9... cxd4 {[%clk 0:02:58.7]}
10. Nxd4 {[%clk 0:03:03.7]} 10... Nxd4 {[%clk 0:02:59.2]} 11. Qxd4 {[%clk
0:02:56.4]} 11... Bf6 {[%clk 0:02:59.6]} 12. Qd2 {[%clk 0:02:56.6]} 12... Bxb2
{[%clk 0:03:00.2]} 13. Qxb2 {[%clk 0:02:57.1]} 13... Qf6 {[%clk 0:02:56.9]} 14.
Qxf6 {[%clk 0:02:52.4]} 14... Nxf6 {[%clk 0:02:57.8]} 15. Rd1 {[%clk 0:02:50.1]}
15... Rb8 {[%clk 0:02:57.1]} 16. Na3 {[%clk 0:02:40.9]} 16... b6 {[%clk
0:02:56]} 17. Nb5 {[%clk 0:02:40.2]} 17... a5 {[%clk 0:02:55.7]} 18. Rac1 {[%clk
0:02:19.1]} 18... Ba6 {[%clk 0:02:55.3]} 19. Nd4 {[%clk 0:02:19]} 19... Rbc8
{[%clk 0:02:41.6]} 20. Nc6 {[%clk 0:01:57.6]} 20... Kh8 {[%clk 0:02:39.6]} 21.
Bf3 {[%clk 0:01:54.9]} 21... g6 {[%clk 0:02:37.5]} 22. Ne5 {[%clk 0:01:44.6]}
22... Kg7 {[%clk 0:02:35.1]} 23. Rxc8 {[%clk 0:01:40.5]} 23... Rxc8 {[%clk
0:02:34.9]} 24. Rd6 {[%clk 0:01:41]} 24... Rc1+ {[%clk 0:02:19.1]} 25. Kg2
{[%clk 0:01:39.7]} 25... Rc2 {[%clk 0:02:20]} 26. e3 {[%clk 0:01:05.6]} 26...
Rc1 {[%clk 0:02:13.4]} 27. g4 {[%clk 0:00:38.9]} 27... Bf1+ {[%clk 0:02:07]} 28.
Kg3 {[%clk 0:00:38.8]} 28... b5 {[%clk 0:02:07]} 29. g5 {[%clk 0:00:38.8]} 29...
Ne8 {[%clk 0:01:51.1]} 30. Rd7 {[%clk 0:00:38.7]} 30... Rc7 {[%clk 0:01:50.8]}
31. Rd8 {[%clk 0:00:29.7]} 31... f6 {[%clk 0:01:35.7]} 32. Rxe8 {[%clk
0:00:19.4]} 32... fxe5 {[%clk 0:01:36.2]} 33. Rxe6 {[%clk 0:00:19.8]} 33... Rc2
{[%clk 0:01:36.8]} 34. a3 {[%clk 0:00:12.7]} 34... Ra2 {[%clk 0:01:33.9]} 35.
Rxe5 {[%clk 0:00:06.3]} 35... Rxa3 {[%clk 0:01:33.9]} 36. Re7+ {[%clk
0:00:06.8]} 36... Kf8 {[%clk 0:01:33.8]} 37. Ra7 {[%clk 0:00:06.2]} 37... b4
{[%clk 0:01:26.6]} 38. Bd5 {[%clk 0:00:05.8]} 38... Bd3 {[%clk 0:01:24.7]} 39.
Kf4 {[%clk 0:00:06]} 39... Bc2 {[%clk 0:01:24.3]} 40. Ke5 {[%clk 0:00:04.7]}
40... Bxb3 {[%clk 0:01:24.4]} 41. Kf6 {[%clk 0:00:05.2]} 41... Bxd5 {[%clk
0:01:23.8]} 42. Rd7 {[%clk 0:00:05.5]} 42... Bc6 {[%clk 0:01:20.5]} 43. Rxh7
{[%clk 0:00:02.3]} 43... Ke8 {[%clk 0:01:20]} 0-1

[Event "Late-Titled-Tuesday-Blitz-September-05-2023"]
[Site "Chess.com"]
[Date "2023.09.05"]
[Round "5"]
[White "Emp3rador"]
[Black "queen_iryna"]
[Result "1-0"]
[WhiteElo "2501"]
[BlackElo "2329"]
[TimeControl "180+1"]
[EndTime "14:55:53 PDT"]
[Termination "Emp3rador won by checkmate"]

1. e4 {[%clk 0:02:56.5]} 1... d6 {[%clk 0:03:00.9]} 2. d4 {[%clk 0:02:56.1]}
2... Nf6 {[%clk 0:03:01.5]} 3. Nc3 {[%clk 0:02:56]} 3... e5 {[%clk 0:03:02]} 4.
Nge2 {[%clk 0:02:55.2]} 4... Nc6 {[%clk 0:03:01]} 5. h3 {[%clk 0:02:54.8]} 5...
Be7 {[%clk 0:02:56.2]} 6. g4 {[%clk 0:02:52.4]} 6... O-O {[%clk 0:02:46.7]} 7.
Bg2 {[%clk 0:02:52.2]} 7... exd4 {[%clk 0:02:44.8]} 8. Nxd4 {[%clk 0:02:51.4]}
8... Re8 {[%clk 0:02:45.3]} 9. O-O {[%clk 0:02:51]} 9... Bf8 {[%clk 0:02:43.6]}
10. Re1 {[%clk 0:02:49.8]} 10... Bd7 {[%clk 0:02:42]} 11. Be3 {[%clk 0:02:23.8]}
11... Nxd4 {[%clk 0:02:40.4]} 12. Qxd4 {[%clk 0:02:20.2]} 12... Bc6 {[%clk
0:02:40.2]} 13. Rad1 {[%clk 0:02:17.2]} 13... Nd7 {[%clk 0:02:35]} 14. f4 {[%clk
0:02:09.3]} 14... a5 {[%clk 0:02:15]} 15. b3 {[%clk 0:02:01.8]} 15... Nc5 {[%clk
0:02:13]} 16. Bf2 {[%clk 0:01:59.5]} 16... Be7 {[%clk 0:02:06.2]} 17. e5 {[%clk
0:01:54.5]} 17... Bxg2 {[%clk 0:01:59.3]} 18. Kxg2 {[%clk 0:01:54]} 18... dxe5
{[%clk 0:01:28.2]} 19. Qc4 {[%clk 0:01:32.3]} 19... Nd7 {[%clk 0:01:10.1]} 20.
fxe5 {[%clk 0:01:24.8]} 20... Qc8 {[%clk 0:01:06.6]} 21. e6 {[%clk 0:01:18.3]}
21... fxe6 {[%clk 0:00:52.1]} 22. Qxe6+ {[%clk 0:01:16.9]} 22... Kh8 {[%clk
0:00:53]} 23. Qxd7 {[%clk 0:01:17.3]} 23... Bd6 {[%clk 0:00:46.1]} 24. Rxe8+
{[%clk 0:01:13.6]} 24... Qxe8 {[%clk 0:00:47]} 25. Qxe8+ {[%clk 0:01:14]} 25...
Rxe8 {[%clk 0:00:47.9]} 26. Nb5 {[%clk 0:01:13.9]} 26... Be5 {[%clk 0:00:44.2]}
27. Rd7 {[%clk 0:01:13.3]} 27... c6 {[%clk 0:00:43.2]} 28. Nd6 {[%clk
0:01:12.8]} 28... Bxd6 {[%clk 0:00:42.4]} 29. Rxd6 {[%clk 0:01:13.7]} 29... h6
{[%clk 0:00:42.1]} 30. Rd7 {[%clk 0:01:12.7]} 30... Re2 {[%clk 0:00:42]} 31.
Rxb7 {[%clk 0:01:12]} 31... Rxc2 {[%clk 0:00:42.6]} 32. a4 {[%clk 0:01:12.3]}
32... c5 {[%clk 0:00:36.9]} 33. Kf3 {[%clk 0:01:09.5]} 33... c4 {[%clk
0:00:36.5]} 34. b4 {[%clk 0:01:10]} 34... axb4 {[%clk 0:00:35]} 35. Rxb4 {[%clk
0:01:09.3]} 35... c3 {[%clk 0:00:34.8]} 36. Rc4 {[%clk 0:01:08.6]} 36... Ra2
{[%clk 0:00:33]} 37. Rxc3 {[%clk 0:01:02.7]} 37... Rxa4 {[%clk 0:00:33.1]} 38.
Rc7 {[%clk 0:01:02.5]} 38... Kh7 {[%clk 0:00:32.5]} 39. Rd7 {[%clk 0:01:02.2]}
39... Ra3+ {[%clk 0:00:21.6]} 40. Be3 {[%clk 0:01:00.6]} 40... Kg6 {[%clk
0:00:19.4]} 41. Ke4 {[%clk 0:00:59.6]} 41... Ra4+ {[%clk 0:00:15.8]} 42. Bd4
{[%clk 0:00:59.7]} 42... h5 {[%clk 0:00:15.1]} 43. Rxg7+ {[%clk 0:00:59.3]}
43... Kh6 {[%clk 0:00:14.9]} 44. g5# {[%clk 0:01:00]} 1-0